[Event "8th Dolomiti Open 2017"]
[Site "Forni di Sopra"]
[Date "2017.06.17"]
[Round "9.6"]
[White "Bifulco, Michel"]
[Black "Henderson de La Fuente, Lance"]
[Result "0-1"]
[ECO "D00"]
[WhiteElo "2254"]
[BlackElo "2365"]
[Annotator "NA"]
[PlyCount "60"]
[EventDate "2017.??.??"]
[EventType "swiss"]
[EventCountry "ITA"]
[SourceTitle "playchess.com"]
[Source "ChessBase"]
[SourceQuality "1"]
[TimeControl "40/5400+30:1800+30"]

{[%evp 23,59,0,0,-52,-45,-21,-25,-60,-55,-70,-62,-101,-74,-148,-129,-144,-120,-137,-145,-233,-211,-197,32767,-528,32767,-548,-550,-626,-589,-613,32767,32767,32767,-792,-879,-821,-850,-933]} 1. d4 {[%emt 0:00:30]} Nf6 {[%emt 0:01:00]} 2. Nc3 {[%emt 0:00:00]} d5 {[%emt 0:00:00]} 3. Bf4 {[%emt 0:00:00]} e6 {[%emt 0:01:00]} 4. Nb5 {[%emt 0:00:30] D00: 1 d4 d5: Unusual lines} Na6 {[%emt 0:00:30]} 5. a3 {[%emt 0:00:00]} c6 {[%emt 0:00:30]} 6. Nc3 {[%emt 0:00:00]} Bd6 {[%emt 0:00:30]} 7. e3 {[%emt 0:00:30]} b6 {[%emt 0:03:30]} 8. Nf3 {[%emt 0:00:30]} Nb8 $146 {[%emt 0:05:30]} ({Predecessor:} 8... Bxf4 9. exf4 O-O 10. Be2 c5 11. O-O Nb8 {0-1 (42) Sheng,J (2375)-So,W (2822) chess.com INT 2017}) 9. Ne5 {[%emt 0:00:30]} Bb7 {[%emt 0:01:30]} 10. Qf3 {[%emt 0:03:30]} O-O {[%emt 0:02:30]} 11. g4 {[%emt 0:01:30]} c5 {[%emt 0:10:30]} 12. Bd3 {[%emt 0:05:30]} Nc6 {[%emt 0:09:30]} 13. g5 {[%emt 0:03:30]} Bxe5 {[%emt 0:05:30]} 14. dxe5 {[%emt 0:09:30]} Nd7 {[%emt 0:00:30]} 15. Qg3 {[%emt 0:03:30]} c4 {[%emt 0:02:30]} 16. Be2 {[%emt 0:09:30]} d4 {[%emt 0:15:30]} 17. Ne4 {[%emt 0:05:30]} Ncxe5 {[%emt 0:02:30]} 18. Bxe5 {[%emt 0:01:30]} (18. f3 $142 Bxe4 19. fxe4) 18... Bxe4 {[%emt 0:00:30]} 19. Bc7 {[%emt 0:00:30]} Qc8 {[%emt 0:00:30]} 20. f3 {[%emt 0:00:30]} Bxc2 {[%emt 0:04:30]} 21. Bxc4 {[%emt 0:04:30]} (21. exd4 $17 Bd3 22. Bxd3 cxd3 23. O-O) 21... e5 {[%emt 0:00:30]} ({Don't play} 21... dxe3 22. Rc1 $17) 22. Rc1 {[%emt 0:00:00]} d3 {[%emt 0:01:30]} 23. Qf2 $2 {[%emt 0:16:00]} (23. O-O) 23... Qxc7 {[%emt 0:01:30]} 24. Bxd3 {[%emt 0:05:30]} Nc5 {[%emt 0:00:30]} 25. Be2 {[%emt 0:10:30]} Bb3 {[%emt 0:01:30]} 26. Rc3 {[%emt 0:00:17]} Rad8 {[%emt 0:00:30]} 27. O-O {[%emt 0:00:16]} Rd2 {[%emt 0:00:30]} 28. Rfc1 {[%emt 0:01:19]} Qe7 {[%emt 0:00:30]} 29. h4 {[%emt 0:00:25]} Rfd8 {[%emt 0:00:30]} 30. Qe1 $19 {[%emt 0:00:33]} Rxb2 {[%emt 0:00:30]} 0-1

[Event "8th Dolomiti Open 2017"]
[Site "Forni di Sopra"]
[Date "2017.06.17"]
[Round "9.7"]
[White "Naumkin, Igor"]
[Black "Denoyelle, Arnaud"]
[Result "1-0"]
[ECO "A89"]
[WhiteElo "2401"]
[BlackElo "2188"]
[Annotator "NA"]
[PlyCount "65"]
[EventDate "2017.??.??"]
[EventType "swiss"]
[EventCountry "ITA"]
[SourceTitle "playchess.com"]
[Source "ChessBase"]
[SourceQuality "1"]
[TimeControl "40/5400+30:1800+30"]

{[%evp 20,61,66,20,29,40,14,35,39,27,35,25,45,40,67,36,34,32767,37,20,74,59,56,33,52,3,6,18,0,6,8,0,23,6,32767,32767,32767,-78,-63,32767,41,3,41,62]} 1. d4 {[%emt 0:13:30]} f5 {[%emt 0:01:00]} 2. Nf3 {[%emt 0:00:30]} g6 {[%emt 0:00:30]} 3. g3 {[%emt 0:00:30]} Bg7 {[%emt 0:00:30]} 4. Bg2 {[%emt 0:00:30]} Nf6 {[%emt 0:00:30]} 5. O-O {[%emt 0:00:30]} O-O {[%emt 0:00:00]} 6. c4 {[%emt 0:00:30]} d6 {[%emt 0:00:00]} 7. Nc3 {[%emt 0:00:30]} Nc6 {[%emt 0:00:30]} 8. d5 {[%emt 0:01:30]} Ne5 {[%emt 0:00:00]} 9. Qb3 {[%emt 0:00:30]} Ned7 {[%emt 0:09:00]} 10. Be3 {[%emt 0:01:30] A89: Dutch Defence: Leningrad System: 5 Nf3 0-0 6 0-0 d6 7 Nc3 Nc6} (10. Qc2 a5 11. Bg5 Nc5 12. Rad1 Bd7 13. Nd4 Qe8 14. Rfe1 Ng4 15. h3 h6 16. Bc1 Nf6 17. e4 fxe4 18. Nxe4 Nfxe4 19. Bxe4 Bxh3 20. Bxg6 {1-0 (46) Illescas Cordoba,M (2618)-Rapport,R (2704) Tromsoe 2014}) 10... Ng4 {[%emt 0:11:30]} 11. Bd2 $146 {[%emt 0:06:30]} ({Predecessor:} 11. Bd4 Nde5 12. Rad1 f4 13. Ne4 h6 14. c5 Nxf3+ 15. exf3 Ne5 16. Rfe1 b6 17. cxb6 cxb6 18. Bxe5 Bxe5 {1-0 (36) Mueller,M (2226)-Noetzel,F (2311) Germany 2009}) 11... e5 {[%emt 0:07:30]} 12. dxe6 {[%emt 0:00:30]} Nc5 {[%emt 0:00:30]} 13. Qc2 {[%emt 0:01:30]} c6 {[%emt 0:02:30]} 14. Rad1 {[%emt 0:07:30]} Nxe6 {[%emt 0:05:30]} 15. e3 {[%emt 0:02:30]} Qf6 {[%emt 0:02:30]} 16. Bc1 {[%emt 0:02:30]} Ne5 {[%emt 0:07:30]} 17. Ne2 {[%emt 0:04:30]} Rd8 {[%emt 0:02:30]} 18. b3 {[%emt 0:02:30]} a5 {[%emt 0:02:30]} 19. h4 {[%emt 0:06:30]} h6 {[%emt 0:04:30]} 20. Ba3 {[%emt 0:00:30]} Nf7 {[%emt 0:02:30]} 21. Rd2 {[%emt 0:03:30]} Nc5 {[%emt 0:01:30]} 22. Nfd4 {[%emt 0:06:30]} (22. Nf4 $14) 22... Re8 {[%emt 0:06:30]} 23. Nc3 {[%emt 0:04:30]} g5 {[%emt 0:04:30]} 24. hxg5 {[%emt 0:02:30]} hxg5 {[%emt 0:00:30]} 25. Nde2 {[%emt 0:01:30]} f4 {[%emt 0:04:30]} 26. Bxc5 {[%emt 0:03:30]} dxc5 {[%emt 0:02:30]} 27. exf4 {[%emt 0:04:30]} Bf5 {[%emt 0:01:30]} 28. Qc1 {[%emt 0:07:34]} gxf4 {[%emt 0:00:30]} 29. gxf4 {[%emt 0:00:06] [#]} Re6 {[%emt 0:03:37]} ({Black should try} 29... Nh6 $1 $17) 30. Ng3 {[%emt 0:00:56]} Nh6 {[%emt 0:01:48]} 31. Nce4 $14 {[%emt 0:05:11]} Bxe4 {[%emt 0:02:24]} 32. Bxe4 {[%emt 0:00:36]} Qxf4 {[%emt 0:01:06]} 33. Rd8+ {[%emt 0:00:19]} 1-0

[Event "8th Dolomiti Open 2017"]
[Site "Forni di Sopra"]
[Date "2017.06.17"]
[Round "9.10"]
[White "Medancic, Rikard"]
[Black "Kiefer, Gerhard"]
[Result "0-1"]
[ECO "A49"]
[WhiteElo "2221"]
[BlackElo "2259"]
[Annotator "NA"]
[PlyCount "58"]
[EventDate "2017.??.??"]
[EventType "swiss"]
[EventCountry "ITA"]
[SourceTitle "playchess.com"]
[Source "ChessBase"]
[SourceQuality "1"]
[TimeControl "40/5400+30:1800+30"]

{[%evp 20,58,46,40,51,30,89,69,73,66,162,77,96,-233,-258,-239,32767,32767,32767,32767,-290,32767,-219,32767,-322,-309,-314,-314,-340,32767,32767,-339,-367,32767,32767,32767,32767,32767,-712,-770,-851]} 1. Nf3 {[%emt 0:00:30]} Nf6 {[%emt 0:01:00]} 2. b3 {[%emt 0:00:30]} g6 {[%emt 0:00:00]} 3. Bb2 {[%emt 0:00:30]} Bg7 {[%emt 0:00:00]} 4. g3 {[%emt 0:00:00]} O-O {[%emt 0:00:30]} 5. Bg2 {[%emt 0:00:00]} d6 {[%emt 0:00:30]} 6. d4 {[%emt 0:00:30]} c6 {[%emt 0:07:30]} 7. O-O {[%emt 0:00:00]} Bf5 {[%emt 0:04:30]} 8. c4 {[%emt 0:01:00] A49: 1 d4 Nf6 2 Nf3 g6 3 g3: Anti-King's Indian systems} Nbd7 {[%emt 0:03:30]} (8... a5 9. Nc3 Ne4 10. Nh4 Nxc3 11. Bxc3 Bc8 12. Qd2 d5 13. Nf3 Nd7 14. cxd5 cxd5 15. Ne5 Nf6 {1-0 (52) Dubov,D (2648)-Rakhmanov,A (2662) Sochi 2016}) 9. Nc3 {[%emt 0:01:30]} Ne4 {[%emt 0:01:30]} 10. Nh4 {[%emt 0:08:30]} Nxc3 {[%emt 0:05:30]} 11. Bxc3 {[%emt 0:00:00]} Be6 $146 {[%emt 0:04:30]} ({Predecessor:} 11... Bg4 12. h3 Be6 13. Qd3 d5 14. e4 dxc4 15. bxc4 Ne5 16. Qb1 Nxc4 17. Qxb7 Bxd4 18. Bxd4 Qxd4 19. Qxe7 {0-1 (44) Kalaiyalahan,A (1872)-Roberts,D (2066) Ascot 2013}) 12. e4 {[%emt 0:02:00]} Nf6 {[%emt 0:01:30]} (12... c5 $11) 13. d5 {[%emt 0:04:30]} Bg4 {[%emt 0:04:30]} 14. Qd2 {[%emt 0:00:30]} Re8 {[%emt 0:07:30] [#]} (14... a5 $14) 15. h3 {[%emt 0:09:30]} (15. dxc6 $1 $18 {has better winning chances.} bxc6 16. e5) 15... Bxh3 {[%emt 0:00:30] [#]} 16. e5 $2 {[%emt 0:09:30]} ({Not} 16. Bxh3 $2 Nxe4 17. Qe1 Nxc3 $19) (16. Bxf6 $1 $16 {is necessary to keep the advantage.} Bxg2 17. Bxg7 Bxf1 18. Bc3) 16... Bxg2 {[%emt 0:01:30]} 17. exf6 {[%emt 0:00:30]} Bxf1 {[%emt 0:00:30]} 18. fxg7 {[%emt 0:00:30]} Bh3 {[%emt 0:00:30]} 19. Qh6 {[%emt 0:00:00]} Qc8 {[%emt 0:17:30]} 20. dxc6 {[%emt 0:27:00]} bxc6 {[%emt 0:01:30]} 21. Kh2 {[%emt 0:03:30]} f6 {[%emt 0:02:30]} 22. Re1 {[%emt 0:03:30]} Bf5 {[%emt 0:06:30]} 23. Ng2 {[%emt 0:07:30]} e5 {[%emt 0:02:30]} 24. Ne3 {[%emt 0:02:56]} Be6 {[%emt 0:03:30]} 25. f4 {[%emt 0:02:15]} Qc7 {[%emt 0:01:30]} 26. f5 {[%emt 0:08:07]} gxf5 {[%emt 0:00:30]} 27. Qxf6 {[%emt 0:00:07]} Qxg7 {[%emt 0:00:30]} 28. Qh4 {[%emt 0:00:06]} Rf8 {[%emt 0:05:06]} 29. Ng2 {[%emt 0:00:29]} Rf6 $19 {[%emt 0:00:59]} 0-1